[Event "Titled Tuesday Blitz April 12 Early 2022"]
[White "Srihari L R"]
[Black "Czerw, Dawid"]
[WhiteFideId "46617116"]
[BlackFideId "1145746"]
[WhiteElo "2121"]
[BlackElo "2125"]
[Result "1-0"]
[Round "04"]
[TimeControl "180+1"]
[Date "2022.04.13"]
[WhiteClock "0:00:13"]
[BlackClock "0:00:04"]

1. Nc3 {[%clk 0:02:49]}  c5 {[%clk 0:02:58]} 2. e4 {[%clk 0:02:44]}  Nc6 {[%clk 0:02:58]} 3. g3 {[%clk 0:02:42]}  g6 {[%clk 0:02:56]} 4. Bg2 {[%clk 0:02:43]}  Bg7 {[%clk 0:02:56]} 5. Nge2 {[%clk 0:02:43]}  e5 {[%clk 0:02:56]} 6. d3 {[%clk 0:02:41]}  Nge7 {[%clk 0:02:56]} 7. O-O {[%clk 0:02:40]}  O-O {[%clk 0:02:53]} 8. f4 {[%clk 0:02:40]}  d6 {[%clk 0:02:48]} 9. h3 {[%clk 0:02:36]}  Be6 {[%clk 0:02:40]} 10. Kh2 {[%clk 0:02:32]}  Qd7 {[%clk 0:02:38]} 11. Nd5 {[%clk 0:02:25]}  f5 {[%clk 0:02:23]} 12. c4 {[%clk 0:02:19]}  Rae8 {[%clk 0:02:20]} 13. Rb1 {[%clk 0:02:15]}  Nd4 {[%clk 0:02:06]} 14. Nxd4 {[%clk 0:02:08]}  cxd4 {[%clk 0:02:05]} 15. fxe5 {[%clk 0:02:07]}  dxe5 {[%clk 0:01:55]} 16. Bg5 {[%clk 0:02:07]}  Nc6 {[%clk 0:01:50]} 17. exf5 {[%clk 0:02:01]}  gxf5 {[%clk 0:01:44]} 18. Qh5 {[%clk 0:02:00]}  Bf7 {[%clk 0:01:32]} 19. Qh4 {[%clk 0:01:58]}  Bg6 {[%clk 0:01:28]} 20. Rbe1 {[%clk 0:01:52]}  Rf7 {[%clk 0:01:07]} 21. b4 {[%clk 0:01:44]}  Nd8 {[%clk 0:01:00]} 22. Bf6 {[%clk 0:01:40]}  b5 {[%clk 0:00:40]} 23. cxb5 {[%clk 0:01:13]}  e4 {[%clk 0:00:28]} 24. dxe4 {[%clk 0:01:09]}  fxe4 {[%clk 0:00:28]} 25. Bxg7 {[%clk 0:01:06]}  Qxd5 {[%clk 0:00:28]} 26. Bf6 {[%clk 0:01:02]}  Ref8 {[%clk 0:00:22]} 27. Bxd8 {[%clk 0:00:52]}  Qxd8 {[%clk 0:00:19]} 28. Qxd8 {[%clk 0:00:48]}  Rxd8 {[%clk 0:00:20]} 29. Rxf7 {[%clk 0:00:48]}  Kxf7 {[%clk 0:00:19]} 30. Bxe4 {[%clk 0:00:48]}  Bxe4 {[%clk 0:00:11]} 31. Rxe4 {[%clk 0:00:48]}  d3 {[%clk 0:00:11]} 32. Re1 {[%clk 0:00:49]}  Rd4 {[%clk 0:00:11]} 33. a3 {[%clk 0:00:48]}  Rc4 {[%clk 0:00:12]} 34. Rd1 {[%clk 0:00:47]}  Rc3 {[%clk 0:00:09]} 35. a4 {[%clk 0:00:44]}  Rb3 {[%clk 0:00:09]} 36. h4 {[%clk 0:00:37]}  Rxb4 {[%clk 0:00:05]} 37. Rxd3 {[%clk 0:00:37]}  Rxa4 {[%clk 0:00:05]} 38. Rd7+ {[%clk 0:00:38]}  Kg6 {[%clk 0:00:06]} 39. Kh3 {[%clk 0:00:38]}  h5 {[%clk 0:00:06]} 40. Rd6+ {[%clk 0:00:37]}  Kg7 {[%clk 0:00:05]} 41. Rd5 {[%clk 0:00:37]}  Kg6 {[%clk 0:00:05]} 42. Rg5+ {[%clk 0:00:37]}  Kh6 {[%clk 0:00:05]} 43. Rg8 {[%clk 0:00:38]}  Ra2 {[%clk 0:00:04]} 44. Rc8 {[%clk 0:00:33]}  Ra5 {[%clk 0:00:02]} 45. Rc5 {[%clk 0:00:31]}  Kg6 {[%clk 0:00:02]} 46. Kg2 {[%clk 0:00:31]}  Ra2+ {[%clk 0:00:02]} 47. Kg1 {[%clk 0:00:30]}  Ra1+ {[%clk 0:00:02]} 48. Kf2 {[%clk 0:00:30]}  Ra2+ {[%clk 0:00:02]} 49. Ke3 {[%clk 0:00:31]}  Ra3+ {[%clk 0:00:03]} 50. Kf4 {[%clk 0:00:31]}  Ra4+ {[%clk 0:00:03]} 51. Ke5 {[%clk 0:00:32]}  Rg4 {[%clk 0:00:04]} 52. Rc3 {[%clk 0:00:31]}  Rb4 {[%clk 0:00:03]} 53. Rc6+ {[%clk 0:00:30]}  Kg7 {[%clk 0:00:03]} 54. Rc7+ {[%clk 0:00:31]}  Kg6 {[%clk 0:00:04]} 55. Rb7 {[%clk 0:00:31]}  Rb3 {[%clk 0:00:03]} 56. Kd5 {[%clk 0:00:29]}  Rxg3 {[%clk 0:00:03]} 57. Rxa7 {[%clk 0:00:29]}  Rg4 {[%clk 0:00:04]} 58. b6 {[%clk 0:00:22]}  Rxh4 {[%clk 0:00:04]} 59. Kc5 {[%clk 0:00:22]}  Rh1 {[%clk 0:00:04]} 60. Ra4 {[%clk 0:00:17]}  Rf1 {[%clk 0:00:02]} 61. b7 {[%clk 0:00:16]}  Rf5+ {[%clk 0:00:02]} 62. Kd6 {[%clk 0:00:16]}  Rf6+ {[%clk 0:00:02]} 63. Kd7 {[%clk 0:00:14]}  Rf7+ {[%clk 0:00:03]} 64. Kc8 {[%clk 0:00:13]}  Rf8+ {[%clk 0:00:03]} 65. Kc7 {[%clk 0:00:14]}  Rf7+ {[%clk 0:00:04]} 66. Kb6 {[%clk 0:00:14]}  Kg5 {[%clk 0:00:04]} 67. b8=Q {[%clk 0:00:13]} 1-0


[Site "https://www.chess.com"]

[Event "Titled Tuesday Blitz April 12 Early 2022"]
[White "Steil-Antoni, Fiona"]
[Black "Wesolowska, Hanna"]
[WhiteFideId "4001249"]
[BlackFideId "1104683"]
[WhiteElo "2059"]
[BlackElo "2292"]
[Result "0-1"]
[Round "04"]
[TimeControl "180+1"]
[Date "2022.04.13"]
[WhiteClock "0:00:42"]
[BlackClock "0:00:36"]

1. e4 {[%clk 0:03:00]}  c5 {[%clk 0:02:36]} 2. Nc3 {[%clk 0:02:59]}  e6 {[%clk 0:02:34]} 3. f4 {[%clk 0:02:59]}  a6 {[%clk 0:02:34]} 4. d3 {[%clk 0:02:56]}  b5 {[%clk 0:02:33]} 5. g3 {[%clk 0:02:57]}  Bb7 {[%clk 0:02:33]} 6. Bg2 {[%clk 0:02:57]}  b4 {[%clk 0:02:34]} 7. Nce2 {[%clk 0:02:57]}  Nf6 {[%clk 0:02:34]} 8. Nf3 {[%clk 0:02:57]}  d5 {[%clk 0:02:35]} 9. e5 {[%clk 0:02:57]}  Nfd7 {[%clk 0:02:35]} 10. c3 {[%clk 0:02:57]}  Be7 {[%clk 0:02:35]} 11. d4 {[%clk 0:02:55]}  O-O {[%clk 0:02:34]} 12. O-O {[%clk 0:02:53]}  Nc6 {[%clk 0:02:34]} 13. Be3 {[%clk 0:02:51]}  a5 {[%clk 0:02:33]} 14. g4 {[%clk 0:02:47]}  Ba6 {[%clk 0:02:23]} 15. Rf2 {[%clk 0:02:43]}  Bxe2 {[%clk 0:02:20]} 16. Qxe2 {[%clk 0:02:42]}  bxc3 {[%clk 0:02:18]} 17. bxc3 {[%clk 0:02:42]}  cxd4 {[%clk 0:02:18]} 18. cxd4 {[%clk 0:02:43]}  Rb8 {[%clk 0:02:17]} 19. f5 {[%clk 0:02:40]}  Nb6 {[%clk 0:02:10]} 20. Raf1 {[%clk 0:02:20]}  Nc4 {[%clk 0:01:57]} 21. Bc1 {[%clk 0:02:14]}  Rb1 {[%clk 0:01:50]} 22. f6 {[%clk 0:01:50]}  gxf6 {[%clk 0:01:49]} 23. exf6 {[%clk 0:01:49]}  Bxf6 {[%clk 0:01:48]} 24. Ne5 {[%clk 0:01:41]}  Bxe5 {[%clk 0:01:40]} 25. dxe5 {[%clk 0:01:42]}  N6xe5 {[%clk 0:01:40]} 26. Bh6 {[%clk 0:01:36]}  Rxf1+ {[%clk 0:01:39]} 27. Bxf1 {[%clk 0:01:23]}  Qb6 {[%clk 0:01:10]} 28. Qd1 {[%clk 0:00:59]}  Rb8 {[%clk 0:00:47]} 29. Bxc4 {[%clk 0:00:44]}  dxc4 {[%clk 0:00:39]} 30. Qd2 {[%clk 0:00:42]}  Nf3+ {[%clk 0:00:36]} 0-1


[Site "https://www.chess.com"]

[Event "Titled Tuesday Blitz April 12 Early 2022"]
[White "Svane, Rasmus"]
[Black "Pinheiro, Iung Alicio de O."]
[WhiteFideId "4657101"]
[BlackFideId "2104350"]
[WhiteElo "2645"]
[BlackElo "2598"]
[Result "1-0"]
[Round "04"]
[TimeControl "180+1"]
[Date "2022.04.12"]
[WhiteClock "0:00:35"]
[BlackClock "0:00:30"]

1. Nf3 {[%clk 0:03:00]}  c5 {[%clk 0:02:59]} 2. c4 {[%clk 0:03:00]}  g6 {[%clk 0:02:57]} 3. d4 {[%clk 0:02:57]}  cxd4 {[%clk 0:02:56]} 4. Nxd4 {[%clk 0:02:58]}  Nc6 {[%clk 0:02:56]} 5. e4 {[%clk 0:02:58]}  Nf6 {[%clk 0:02:55]} 6. Nc3 {[%clk 0:02:58]}  d6 {[%clk 0:02:54]} 7. f3 {[%clk 0:02:55]}  Nxd4 {[%clk 0:02:54]} 8. Qxd4 {[%clk 0:02:56]}  Bg7 {[%clk 0:02:55]} 9. Be3 {[%clk 0:02:55]}  O-O {[%clk 0:02:55]} 10. Qd2 {[%clk 0:02:55]}  a5 {[%clk 0:02:54]} 11. Be2 {[%clk 0:02:54]}  a4 {[%clk 0:02:54]} 12. Kf2 {[%clk 0:02:48]}  Be6 {[%clk 0:02:50]} 13. Nb5 {[%clk 0:02:14]}  Nd7 {[%clk 0:02:45]} 14. Nd4 {[%clk 0:02:13]}  Nc5 {[%clk 0:02:34]} 15. h4 {[%clk 0:02:03]}  Bd7 {[%clk 0:02:24]} 16. h5 {[%clk 0:01:55]}  f5 {[%clk 0:02:21]} 17. hxg6 {[%clk 0:01:50]}  fxe4 {[%clk 0:02:12]} 18. Bh6 {[%clk 0:00:56]}  Nd3+ {[%clk 0:00:58]} 19. Bxd3 {[%clk 0:00:42]}  Bxd4+ {[%clk 0:00:58]} 20. Be3 {[%clk 0:00:34]}  Bxe3+ {[%clk 0:00:49]} 21. Qxe3 {[%clk 0:00:35]}  exd3 {[%clk 0:00:46]} 22. Rxh7 {[%clk 0:00:35]}  e5 {[%clk 0:00:31]} 23. Rh8+ {[%clk 0:00:34]}  Kg7 {[%clk 0:00:29]} 24. Qh6+ {[%clk 0:00:34]}  Kf6 {[%clk 0:00:30]} 25. g7+ {[%clk 0:00:35]} 1-0


[Site "https://www.chess.com"]

[Event "Titled Tuesday Blitz April 12 Early 2022"]
[White "Tasev, Dejan"]
[Black "Rustemov, Alexander"]
[WhiteFideId "936618"]
[BlackFideId "4119002"]
[WhiteElo "2253"]
[BlackElo "2830"]
[Result "1-0"]
[Round "04"]
[TimeControl "180+1"]
[Date "2022.04.12"]
[WhiteClock "0:00:14"]
[BlackClock "0:00:03"]

1. e4 {[%clk 0:03:00]}  e6 {[%clk 0:02:59]} 2. d4 {[%clk 0:03:00]}  d5 {[%clk 0:03:00]} 3. Nc3 {[%clk 0:03:01]}  Bb4 {[%clk 0:02:59]} 4. exd5 {[%clk 0:03:00]}  exd5 {[%clk 0:02:59]} 5. Bd3 {[%clk 0:03:01]}  Nc6 {[%clk 0:02:57]} 6. Ne2 {[%clk 0:03:00]}  Nge7 {[%clk 0:02:56]} 7. a3 {[%clk 0:02:57]}  Ba5 {[%clk 0:02:53]} 8. O-O {[%clk 0:02:53]}  Bf5 {[%clk 0:02:51]} 9. Be3 {[%clk 0:02:47]}  O-O {[%clk 0:02:49]} 10. Ng3 {[%clk 0:02:46]}  Bxd3 {[%clk 0:02:38]} 11. Qxd3 {[%clk 0:02:46]}  Bxc3 {[%clk 0:02:38]} 12. Qxc3 {[%clk 0:02:40]}  Qd7 {[%clk 0:02:38]} 13. Qd3 {[%clk 0:02:31]}  Rfe8 {[%clk 0:02:31]} 14. Rfe1 {[%clk 0:02:27]}  Ng6 {[%clk 0:02:29]} 15. b4 {[%clk 0:02:14]}  a6 {[%clk 0:02:25]} 16. c3 {[%clk 0:02:12]}  Nce7 {[%clk 0:02:17]} 17. a4 {[%clk 0:02:10]}  Nc8 {[%clk 0:02:14]} 18. a5 {[%clk 0:02:09]}  Nd6 {[%clk 0:02:14]} 19. Bd2 {[%clk 0:02:07]}  Rxe1+ {[%clk 0:02:08]} 20. Rxe1 {[%clk 0:02:06]}  Re8 {[%clk 0:02:09]} 21. Rxe8+ {[%clk 0:02:03]}  Qxe8 {[%clk 0:02:08]} 22. Kf1 {[%clk 0:01:56]}  f6 {[%clk 0:02:05]} 23. Qe2 {[%clk 0:01:51]}  Qd7 {[%clk 0:01:45]} 24. h3 {[%clk 0:01:42]}  Kf7 {[%clk 0:01:44]} 25. Qh5 {[%clk 0:01:39]}  Kg8 {[%clk 0:01:42]} 26. Qxd5+ {[%clk 0:01:37]}  Kf8 {[%clk 0:01:40]} 27. Qf3 {[%clk 0:01:29]}  Ne7 {[%clk 0:01:34]} 28. Kg1 {[%clk 0:01:26]}  Nc4 {[%clk 0:01:27]} 29. Be1 {[%clk 0:01:16]}  Qd5 {[%clk 0:01:20]} 30. Qd3 {[%clk 0:01:07]}  g6 {[%clk 0:01:17]} 31. Ne4 {[%clk 0:00:48]}  Kf7 {[%clk 0:01:09]} 32. Nc5 {[%clk 0:00:44]}  Nd6 {[%clk 0:01:04]} 33. Qd2 {[%clk 0:00:35]}  Nef5 {[%clk 0:00:58]} 34. Qe2 {[%clk 0:00:30]}  h5 {[%clk 0:00:56]} 35. Bd2 {[%clk 0:00:29]}  Nc4 {[%clk 0:00:40]} 36. Bf4 {[%clk 0:00:27]}  b6 {[%clk 0:00:34]} 37. Nxa6 {[%clk 0:00:24]}  bxa5 {[%clk 0:00:28]} 38. Nxc7 {[%clk 0:00:24]}  Qc6 {[%clk 0:00:03]} 39. d5 {[%clk 0:00:24]}  Qa4 {[%clk 0:00:02]} 40. Qxc4 {[%clk 0:00:19]}  Qd1+ {[%clk 0:00:02]} 41. Kh2 {[%clk 0:00:19]}  g5 {[%clk 0:00:02]} 42. d6+ {[%clk 0:00:19]}  Kg6 {[%clk 0:00:03]} 43. Qg8+ {[%clk 0:00:18]}  Kh6 {[%clk 0:00:03]} 44. Qf8+ {[%clk 0:00:15]}  Kg6 {[%clk 0:00:03]} 45. Ne8 {[%clk 0:00:13]}  gxf4 {[%clk 0:00:01]} 46. Qxf6+ {[%clk 0:00:13]}  Kh7 {[%clk 0:00:01]} 47. Qxf5+ {[%clk 0:00:14]}  Kg8 {[%clk 0:00:02]} 48. Nf6+ {[%clk 0:00:13]}  Kf8 {[%clk 0:00:03]} 49. Ne4+ {[%clk 0:00:13]}  Ke8 {[%clk 0:00:02]} 50. Qe6+ {[%clk 0:00:13]}  Kf8 {[%clk 0:00:03]} 51. Qe7+ {[%clk 0:00:14]}  Kg8 {[%clk 0:00:03]} 52. Nf6+ {[%clk 0:00:14]} 1-0


[Site "https://www.chess.com"]

[Event "Titled Tuesday Blitz April 12 Early 2022"]
[White "Tsyhanchuk, Stanislav"]
[Black "Domingo Nunez, Alejandro"]
[WhiteFideId "13505130"]
[BlackFideId "22245561"]
[WhiteElo "2078"]
[BlackElo "2215"]
[Result "0-1"]
[Round "04"]
[TimeControl "180+1"]
[Date "2022.04.13"]
[WhiteClock "0:00:16"]
[BlackClock "0:00:59"]

1. e4 {[%clk 0:03:00]}  g6 {[%clk 0:03:00]} 2. d4 {[%clk 0:02:59]}  Bg7 {[%clk 0:03:00]} 3. Nc3 {[%clk 0:03:00]}  c6 {[%clk 0:03:01]} 4. Nf3 {[%clk 0:02:58]}  d5 {[%clk 0:03:01]} 5. h3 {[%clk 0:02:58]}  dxe4 {[%clk 0:03:02]} 6. Nxe4 {[%clk 0:02:59]}  Nf6 {[%clk 0:03:03]} 7. Bd3 {[%clk 0:02:55]}  O-O {[%clk 0:03:03]} 8. O-O {[%clk 0:02:55]}  a5 {[%clk 0:03:04]} 9. a4 {[%clk 0:02:51]}  Na6 {[%clk 0:03:04]} 10. c3 {[%clk 0:02:50]}  Be6 {[%clk 0:03:04]} 11. Bxa6 {[%clk 0:02:38]}  bxa6 {[%clk 0:03:04]} 12. Nc5 {[%clk 0:02:37]}  Bd5 {[%clk 0:03:02]} 13. Re1 {[%clk 0:02:35]}  Nd7 {[%clk 0:03:00]} 14. Nxd7 {[%clk 0:02:32]}  Qxd7 {[%clk 0:03:01]} 15. Ne5 {[%clk 0:02:31]}  Qb7 {[%clk 0:03:01]} 16. Nd3 {[%clk 0:02:27]}  c5 {[%clk 0:02:38]} 17. Nxc5 {[%clk 0:02:24]}  Qc6 {[%clk 0:02:38]} 18. Qg4 {[%clk 0:02:06]}  e5 {[%clk 0:02:39]} 19. Bg5 {[%clk 0:01:24]}  f5 {[%clk 0:01:54]} 20. Qg3 {[%clk 0:01:11]}  f4 {[%clk 0:01:18]} 21. Qg4 {[%clk 0:01:11]}  h6 {[%clk 0:01:18]} 22. Be7 {[%clk 0:00:26]}  Rf7 {[%clk 0:01:18]} 23. Bh4 {[%clk 0:00:09]}  g5 {[%clk 0:01:18]} 24. Bxg5 {[%clk 0:00:10]}  hxg5 {[%clk 0:01:19]} 25. Qxg5 {[%clk 0:00:11]}  Rf6 {[%clk 0:01:20]} 26. Rxe5 {[%clk 0:00:06]}  Rg6 {[%clk 0:01:20]} 27. Rxd5 {[%clk 0:00:05]}  Rxg5 {[%clk 0:01:20]} 28. Rxg5 {[%clk 0:00:06]}  f3 {[%clk 0:01:20]} 29. Re1 {[%clk 0:00:05]}  Rf8 {[%clk 0:01:16]} 30. Re7 {[%clk 0:00:05]}  Rf7 {[%clk 0:01:17]} 31. Re6 {[%clk 0:00:04]}  Qc8 {[%clk 0:01:13]} 32. Reg6 {[%clk 0:00:04]}  Kh7 {[%clk 0:01:01]} 33. Ne6 {[%clk 0:00:04]}  Bf6 {[%clk 0:01:01]} 34. Rg4 {[%clk 0:00:03]}  Qxe6 {[%clk 0:01:00]} 35. gxf3 {[%clk 0:00:01]}  Qf5 {[%clk 0:00:57]} 36. h4 {[%clk 0:00:01]}  Qxg6 {[%clk 0:00:57]} 37. Rxg6 {[%clk 0:00:02]}  Kxg6 {[%clk 0:00:58]} 38. Kg2 {[%clk 0:00:03]}  Bxh4 {[%clk 0:00:58]} 39. f4 {[%clk 0:00:03]}  Rxf4 {[%clk 0:00:58]} 40. f3 {[%clk 0:00:04]}  Kf5 {[%clk 0:00:57]} 41. Kh3 {[%clk 0:00:05]}  Be1 {[%clk 0:00:55]} 42. Kg2 {[%clk 0:00:06]}  Rh4 {[%clk 0:00:54]} 43. Kf1 {[%clk 0:00:06]}  Rh1+ {[%clk 0:00:54]} 44. Ke2 {[%clk 0:00:06]}  Bg3 {[%clk 0:00:53]} 45. Kd3 {[%clk 0:00:06]}  Rh2 {[%clk 0:00:53]} 46. b4 {[%clk 0:00:07]}  axb4 {[%clk 0:00:53]} 47. cxb4 {[%clk 0:00:08]}  Be1 {[%clk 0:00:53]} 48. b5 {[%clk 0:00:07]}  axb5 {[%clk 0:00:54]} 49. axb5 {[%clk 0:00:08]}  Ke6 {[%clk 0:00:55]} 50. f4 {[%clk 0:00:08]}  Kd5 {[%clk 0:00:55]} 51. f5 {[%clk 0:00:08]}  Rh3+ {[%clk 0:00:55]} 52. Ke2 {[%clk 0:00:08]}  Ba5 {[%clk 0:00:55]} 53. f6 {[%clk 0:00:09]}  Kxd4 {[%clk 0:00:55]} 54. f7 {[%clk 0:00:08]}  Rh8 {[%clk 0:00:55]} 55. Kf3 {[%clk 0:00:08]}  Rf8 {[%clk 0:00:55]} 56. Kg4 {[%clk 0:00:09]}  Rxf7 {[%clk 0:00:56]} 57. Kg5 {[%clk 0:00:10]}  Rf1 {[%clk 0:00:56]} 58. Kg6 {[%clk 0:00:11]}  Bb6 {[%clk 0:00:56]} 59. Kg5 {[%clk 0:00:11]}  Kc4 {[%clk 0:00:57]} 60. Kg6 {[%clk 0:00:12]}  Kxb5 {[%clk 0:00:58]} 61. Kg5 {[%clk 0:00:13]}  Kc4 {[%clk 0:00:58]} 62. Kg6 {[%clk 0:00:13]}  Kd3 {[%clk 0:00:59]} 63. Kg7 {[%clk 0:00:14]}  Ke4 {[%clk 0:00:59]} 64. Kh6 {[%clk 0:00:15]}  Kf5 {[%clk 0:00:59]} 65. Kh5 {[%clk 0:00:16]}  Rh1# {[%clk 0:00:59]} 0-1


[Site "https://www.chess.com"]

[Event "Titled Tuesday Blitz April 12 Early 2022"]
[White "Vlassov, Nikolai"]
[Black "Bychkov, Vladimir"]
[WhiteFideId "4103360"]
[BlackFideId "24151513"]
[WhiteElo "2407"]
[BlackElo "2197"]
[Result "1/2-1/2"]
[Round "04"]
[TimeControl "180+1"]
[Date "2022.04.13"]
[WhiteClock "0:00:49"]
[BlackClock "0:01:45"]

1. e4 {[%clk 0:03:00]}  e6 {[%clk 0:02:57]} 2. d4 {[%clk 0:03:00]}  d5 {[%clk 0:02:57]} 3. exd5 {[%clk 0:03:01]}  exd5 {[%clk 0:02:57]} 4. Nf3 {[%clk 0:03:01]}  Bd6 {[%clk 0:02:58]} 5. c4 {[%clk 0:03:02]}  c6 {[%clk 0:02:58]} 6. Bd3 {[%clk 0:03:01]}  Nf6 {[%clk 0:02:58]} 7. O-O {[%clk 0:03:01]}  O-O {[%clk 0:02:58]} 8. Nc3 {[%clk 0:03:01]}  Nbd7 {[%clk 0:02:56]} 9. Bg5 {[%clk 0:02:57]}  h6 {[%clk 0:02:56]} 10. Bh4 {[%clk 0:02:57]}  Re8 {[%clk 0:02:56]} 11. cxd5 {[%clk 0:02:54]}  cxd5 {[%clk 0:02:45]} 12. Nxd5 {[%clk 0:02:53]}  Qa5 {[%clk 0:02:36]} 13. Nxf6+ {[%clk 0:02:51]}  Nxf6 {[%clk 0:02:36]} 14. Bxf6 {[%clk 0:02:51]}  gxf6 {[%clk 0:02:36]} 15. h3 {[%clk 0:02:43]}  Qh5 {[%clk 0:02:33]} 16. Bc2 {[%clk 0:02:18]}  Bxh3 {[%clk 0:02:18]} 17. Qd3 {[%clk 0:01:26]}  Bxg2 {[%clk 0:01:54]} 18. Kxg2 {[%clk 0:00:48]}  Qg4+ {[%clk 0:01:52]} 19. Kh1 {[%clk 0:00:48]}  Qh3+ {[%clk 0:01:52]} 20. Kg1 {[%clk 0:00:48]}  Qg4+ {[%clk 0:01:44]} 21. Kh1 {[%clk 0:00:48]}  Qh3+ {[%clk 0:01:44]} 22. Kg1 {[%clk 0:00:49]}  Qg4+ {[%clk 0:01:45]} 23. Kh1 {[%clk 0:00:49]} 1/2-1/2


[Site "https://www.chess.com"]

[Event "Titled Tuesday Blitz April 12 Early 2022"]
[White "Vusatiuk, Vladimir"]
[Black "Zhigalko, Sergei"]
[WhiteFideId "14118610"]
[BlackFideId "13502956"]
[WhiteElo "2157"]
[BlackElo "2662"]
[Result "0-1"]
[Round "04"]
[TimeControl "180+1"]
[Date "2022.04.12"]
[WhiteClock "0:00:03"]
[BlackClock "0:01:00"]

1. d4 {[%clk 0:03:00]}  Nf6 {[%clk 0:02:59]} 2. c4 {[%clk 0:02:59]}  e6 {[%clk 0:02:58]} 3. Nc3 {[%clk 0:02:47]}  Bb4 {[%clk 0:02:58]} 4. e3 {[%clk 0:02:42]}  O-O {[%clk 0:02:58]} 5. Bd3 {[%clk 0:02:42]}  d5 {[%clk 0:02:58]} 6. Nf3 {[%clk 0:02:38]}  b6 {[%clk 0:02:58]} 7. cxd5 {[%clk 0:02:38]}  exd5 {[%clk 0:02:58]} 8. Bd2 {[%clk 0:02:13]}  Bb7 {[%clk 0:02:55]} 9. Qc2 {[%clk 0:02:01]}  a6 {[%clk 0:02:48]} 10. O-O-O {[%clk 0:01:49]}  Re8 {[%clk 0:02:45]} 11. h4 {[%clk 0:01:24]}  c5 {[%clk 0:02:31]} 12. Ng5 {[%clk 0:01:17]}  h6 {[%clk 0:02:29]} 13. f3 {[%clk 0:00:37]}  cxd4 {[%clk 0:02:15]} 14. exd4 {[%clk 0:00:37]}  Nc6 {[%clk 0:02:16]} 15. Ne2 {[%clk 0:00:28]}  Rc8 {[%clk 0:02:07]} 16. Bc3 {[%clk 0:00:22]}  Bxc3 {[%clk 0:01:53]} 17. bxc3 {[%clk 0:00:23]}  Nb4 {[%clk 0:01:47]} 18. Qb1 {[%clk 0:00:23]}  Nxd3+ {[%clk 0:01:07]} 19. Qxd3 {[%clk 0:00:24]}  Qe7 {[%clk 0:01:07]} 20. Nf4 {[%clk 0:00:20]}  Qa3+ {[%clk 0:01:04]} 21. Kb1 {[%clk 0:00:09]}  Rxc3 {[%clk 0:01:02]} 22. Qf5 {[%clk 0:00:09]}  Bc8 {[%clk 0:01:01]} 23. Nxd5 {[%clk 0:00:03]}  Bxf5+ {[%clk 0:01:00]} 0-1


[Site "https://www.chess.com"]

[Event "Titled Tuesday Blitz April 12 Early 2022"]
[White "Weetik, Vjacheslav"]
[Black "Eynullayev, Atilla"]
[WhiteFideId "4153472"]
[BlackFideId "13413570"]
[WhiteElo "2469"]
[BlackElo "1936"]
[Result "1-0"]
[Round "04"]
[TimeControl "180+1"]
[Date "2022.04.13"]
[WhiteClock "0:00:12"]
[BlackClock "0:00:03"]

1. d4 {[%clk 0:02:59]}  Nf6 {[%clk 0:02:59]} 2. Nf3 {[%clk 0:03:00]}  d5 {[%clk 0:02:59]} 3. c4 {[%clk 0:02:59]}  e6 {[%clk 0:02:59]} 4. Nc3 {[%clk 0:02:59]}  c5 {[%clk 0:02:59]} 5. e3 {[%clk 0:02:59]}  Nc6 {[%clk 0:02:59]} 6. a3 {[%clk 0:02:59]}  dxc4 {[%clk 0:02:59]} 7. Bxc4 {[%clk 0:02:59]}  a6 {[%clk 0:02:59]} 8. Ba2 {[%clk 0:02:52]}  b5 {[%clk 0:02:58]} 9. O-O {[%clk 0:02:49]}  Bb7 {[%clk 0:02:50]} 10. Qe2 {[%clk 0:02:40]}  cxd4 {[%clk 0:02:49]} 11. exd4 {[%clk 0:02:40]}  Nxd4 {[%clk 0:02:37]} 12. Nxd4 {[%clk 0:02:39]}  Qxd4 {[%clk 0:02:37]} 13. Be3 {[%clk 0:02:18]}  Qg4 {[%clk 0:02:19]} 14. f3 {[%clk 0:02:15]}  Qh5 {[%clk 0:02:19]} 15. g4 {[%clk 0:01:34]}  Qe5 {[%clk 0:01:23]} 16. Qf2 {[%clk 0:01:15]}  Be7 {[%clk 0:00:50]} 17. Rae1 {[%clk 0:00:58]}  O-O {[%clk 0:00:40]} 18. Bd4 {[%clk 0:00:53]}  Qc7 {[%clk 0:00:30]} 19. Bb1 {[%clk 0:00:33]}  Rad8 {[%clk 0:00:29]} 20. Bb6 {[%clk 0:00:21]}  Qc8 {[%clk 0:00:20]} 21. Rc1 {[%clk 0:00:17]}  Rd7 {[%clk 0:00:06]} 22. Nd5 {[%clk 0:00:17]}  Bxd5 {[%clk 0:00:03]} 23. Rxc8 {[%clk 0:00:16]}  Rxc8 {[%clk 0:00:04]} 24. Bd4 {[%clk 0:00:17]}  Bd6 {[%clk 0:00:03]} 25. Qh4 {[%clk 0:00:15]}  h6 {[%clk 0:00:01]} 26. Bxf6 {[%clk 0:00:15]}  gxf6 {[%clk 0:00:02]} 27. Qxh6 {[%clk 0:00:12]}  Bf8 {[%clk 0:00:03]} 28. Qh7# {[%clk 0:00:12]} 1-0


[Site "https://www.chess.com"]